[Event "European Online Club-ch-E 2021"]
[Site "Online"]
[Date "2021.03.27"]
[Round "4.4"]
[White "Dolgun, Can"]
[Black "Marchadour, Emilie"]
[Result "1-0"]
[ECO "B47"]
[WhiteElo "2133"]
[BlackElo "2006"]
[Annotator "NA"]
[PlyCount "55"]
[EventDate "2021.03.27"]
[EventType "team-tourn"]
[EventCountry "NET"]
[SourceTitle "playchess.com"]
[Source "ChessBase"]
[SourceQuality "1"]
[TimeControl "900+5"]

1. e4 {[%emt 0:00:00]} c5 {[%emt 0:00:03]} 2. Nf3 {[%emt 0:00:02]} e6 {[%emt 0:00:03]} 3. d4 {[%emt 0:00:01]} cxd4 {[%emt 0:00:01]} 4. Nxd4 {[%emt 0:00:02]} Nc6 {[%emt 0:00:03]} 5. Nc3 {[%emt 0:00:03]} Qc7 {[%emt 0:00:02]} 6. Ndb5 {[%emt 0:00:40]} Qb8 {[%emt 0:00:14]} 7. Be3 {[%emt 0:00:09]} a6 {[%emt 0:00:05]} 8. Nd4 {[%emt 0:00:05]} Nf6 {[%emt 0:00:11]} 9. Bd3 {[%emt 0:00:16]} Bb4 {[%emt 0:00:04]} 10. O-O {[%emt 0:00:35]} Bxc3 {[%emt 0:00:04]} 11. bxc3 {[%emt 0:00:02]} O-O {[%emt 0:00:03]} 12. f4 {[%emt 0:00:34]} d6 {[%emt 0:01:09]} 13. Nxc6 {[%emt 0:00:09]} bxc6 {[%emt 0:00:04]} 14. e5 {[%emt 0:00:29]} Nd5 {[%emt 0:00:18]} 15. Bd4 {[%emt 0:01:17]} c5 {[%emt 0:00:07]} 16. Bf2 {[%emt 0:00:07]} dxe5 {[%emt 0:01:44]} 17. Bxc5 {[%emt 0:00:58]} exf4 {[%emt 0:00:03]} 18. Bxf8 {[%emt 0:00:57]} Kxf8 {[%emt 0:00:06]} 19. Qh5 {[%emt 0:00:32]} Ne3 {[%emt 0:00:54]} 20. Qc5+ {[%emt 0:00:44]} Kg8 {[%emt 0:00:12]} 21. Rfb1 {[%emt 0:00:40]} Bb7 {[%emt 0:00:19]} 22. Be4 {[%emt 0:00:28]} Ra7 {[%emt 0:00:08]} 23. Qxa7 {[%emt 0:01:01]} Qxa7 {[%emt 0:00:10]} 24. Rxb7 {[%emt 0:00:03]} Qa8 {[%emt 0:00:36]} 25. Rab1 {[%emt 0:00:02]} f5 {[%emt 0:00:05]} 26. Rb8+ {[%emt 0:00:04]} Qxb8 {[%emt 0:00:03]} 27. Rxb8+ {[%emt 0:00:02]} Kf7 {[%emt 0:00:02]} 28. Bd3 {[%emt 0:00:03]} 1-0

[Event "European Online Club-ch-E 2021"]
[Site "Online"]
[Date "2021.03.27"]
[Round "4.5"]
[White "Kanakaris, Georgios"]
[Black "Sirosh, Ilja"]
[Result "1-0"]
[ECO "A48"]
[WhiteElo "2400"]
[BlackElo "2400"]
[Annotator "NA"]
[PlyCount "145"]
[EventDate "2021.03.27"]
[EventType "team-tourn"]
[EventCountry "NET"]
[SourceTitle "playchess.com"]
[Source "ChessBase"]
[SourceQuality "1"]
[TimeControl "900+5"]

1. Nf3 {[%emt 0:00:00]} d5 {[%emt 0:00:03]} 2. d4 {[%emt 0:00:06]} c5 {[%emt 0:00:03]} 3. e3 {[%emt 0:00:04]} Nf6 {[%emt 0:00:05]} 4. b3 {[%emt 0:00:13]} Nc6 {[%emt 0:00:12]} 5. Bb2 {[%emt 0:00:04]} cxd4 {[%emt 0:00:01]} 6. exd4 {[%emt 0:00:01]} g6 {[%emt 0:00:07]} 7. Be2 {[%emt 0:00:10]} Bg7 {[%emt 0:00:01]} 8. O-O {[%emt 0:00:02]} O-O {[%emt 0:00:11]} 9. Re1 {[%emt 0:00:16]} Bf5 {[%emt 0:00:18]} 10. c3 {[%emt 0:00:11]} Rc8 {[%emt 0:00:42]} 11. Nbd2 {[%emt 0:00:03]} Ne4 {[%emt 0:00:09]} 12. Nxe4 {[%emt 0:00:37]} dxe4 {[%emt 0:01:21]} 13. Nh4 {[%emt 0:00:06]} Be6 {[%emt 0:03:18]} 14. g3 {[%emt 0:00:15]} g5 {[%emt 0:00:51]} 15. Ng2 {[%emt 0:00:03]} f5 {[%emt 0:00:02]} 16. f3 {[%emt 0:00:34]} exf3 {[%emt 0:00:48]} 17. Bxf3 {[%emt 0:00:00]} Bd5 {[%emt 0:00:03]} 18. Bxd5+ {[%emt 0:06:06]} Qxd5 {[%emt 0:00:00]} 19. Ne3 {[%emt 0:00:02]} Qd7 {[%emt 0:01:14]} 20. Qf3 {[%emt 0:00:05]} e5 {[%emt 0:01:59]} 21. Ba3 {[%emt 0:04:58]} Rf7 {[%emt 0:02:10]} 22. d5 {[%emt 0:00:31]} Nd8 {[%emt 0:01:46]} 23. Qh5 {[%emt 0:00:07]} f4 {[%emt 0:00:31]} 24. Ng4 {[%emt 0:00:02]} Rf5 {[%emt 0:00:37]} 25. Nh6+ {[%emt 0:00:28]} Bxh6 {[%emt 0:00:02]} 26. Qxh6 {[%emt 0:00:00]} Nf7 {[%emt 0:00:01]} 27. Qe6 {[%emt 0:00:08]} Qxe6 {[%emt 0:00:30]} 28. dxe6 {[%emt 0:00:00]} Nd8 {[%emt 0:00:04]} 29. g4 {[%emt 0:00:07]} Rf6 {[%emt 0:00:02]} 30. Rxe5 {[%emt 0:00:08]} Nxe6 {[%emt 0:00:01]} 31. Rae1 {[%emt 0:00:05]} Kf7 {[%emt 0:00:02]} 32. c4 {[%emt 0:00:02]} Rd8 {[%emt 0:00:03]} 33. Kf2 {[%emt 0:00:16]} Rd2+ {[%emt 0:00:07]} 34. R1e2 {[%emt 0:00:02]} Rxe2+ {[%emt 0:00:15]} 35. Kxe2 {[%emt 0:00:00]} Kg6 {[%emt 0:00:02]} 36. Be7 {[%emt 0:00:05]} Nd4+ {[%emt 0:00:10]} 37. Kf2 {[%emt 0:00:09]} Re6 {[%emt 0:00:05]} 38. Rxg5+ {[%emt 0:00:04]} Kf7 {[%emt 0:00:01]} 39. Bc5 {[%emt 0:00:08]} Re4 {[%emt 0:00:07]} 40. Rd5 {[%emt 0:00:07]} Ne6 {[%emt 0:00:02]} 41. Kf3 {[%emt 0:00:03]} Re1 {[%emt 0:00:07]} 42. Bxa7 {[%emt 0:00:03]} Rf1+ {[%emt 0:00:02]} 43. Kg2 {[%emt 0:00:04]} Ra1 {[%emt 0:00:02]} 44. Rd7+ {[%emt 0:00:08]} Kg6 {[%emt 0:00:02]} 45. Rd2 {[%emt 0:00:06]} Ng5 {[%emt 0:00:11]} 46. Rd6+ {[%emt 0:00:15]} Kf7 {[%emt 0:00:02]} 47. Rf6+ {[%emt 0:00:04]} Ke7 {[%emt 0:00:14]} 48. Rxf4 {[%emt 0:00:02]} Rxa2+ {[%emt 0:00:02]} 49. Bf2 {[%emt 0:00:01]} Rb2 {[%emt 0:00:02]} 50. b4 {[%emt 0:00:06]} Ne6 {[%emt 0:00:06]} 51. Re4 {[%emt 0:00:01]} Kf7 {[%emt 0:00:04]} 52. b5 {[%emt 0:00:04]} Nc5 {[%emt 0:00:04]} 53. Rd4 {[%emt 0:00:10]} Ke6 {[%emt 0:00:02]} 54. Kg3 {[%emt 0:00:14]} Rb3+ {[%emt 0:00:02]} 55. Kh4 {[%emt 0:00:06]} Rb2 {[%emt 0:00:02]} 56. Bg3 {[%emt 0:00:06]} Rc2 {[%emt 0:00:04]} 57. Kh5 {[%emt 0:00:11]} Nb3 {[%emt 0:00:08]} 58. Rd6+ {[%emt 0:00:04]} Ke7 {[%emt 0:00:05]} 59. Rh6 {[%emt 0:00:04]} Rxc4 {[%emt 0:00:05]} 60. Rxh7+ {[%emt 0:00:02]} Kf6 {[%emt 0:00:03]} 61. Rxb7 {[%emt 0:00:00]} Rc5+ {[%emt 0:00:03]} 62. Kh6 {[%emt 0:00:09]} Nd4 {[%emt 0:00:01]} 63. Bh4+ {[%emt 0:00:08]} Ke6 {[%emt 0:00:04]} 64. Re7+ {[%emt 0:00:08]} Kd5 {[%emt 0:00:03]} 65. Bg3 {[%emt 0:00:08]} Rxb5 {[%emt 0:00:03]} 66. Re5+ {[%emt 0:00:02]} Kc6 {[%emt 0:00:01]} 67. Rxb5 {[%emt 0:00:00]} Nxb5 {[%emt 0:00:01]} 68. Kg7 {[%emt 0:00:05]} Nd4 {[%emt 0:00:05]} 69. h4 {[%emt 0:00:05]} Kd5 {[%emt 0:00:01]} 70. h5 {[%emt 0:00:02]} Ke4 {[%emt 0:00:04]} 71. h6 {[%emt 0:00:04]} Ne6+ {[%emt 0:00:05]} 72. Kf6 {[%emt 0:00:03]} Nf8 {[%emt 0:00:01]} 73. Bd6 {[%emt 0:00:03]} 1-0

[Event "European Online Club-ch-E 2021"]
[Site "Online"]
[Date "2021.03.27"]
[Round "4.6"]
[White "Chukavin, Kirill"]
[Black "Stefanou, Dimitrios"]
[Result "1-0"]
[ECO "C47"]
[WhiteElo "2384"]
[BlackElo "2099"]
[Annotator "NA"]
[PlyCount "59"]
[EventDate "2021.03.27"]
[EventType "team-tourn"]
[EventCountry "NET"]
[SourceTitle "playchess.com"]
[Source "ChessBase"]
[SourceQuality "1"]
[TimeControl "900+5"]

1. e4 {[%emt 0:00:00]} e5 {[%emt 0:00:05]} 2. Nf3 {[%emt 0:00:05]} Nc6 {[%emt 0:00:02]} 3. Nc3 {[%emt 0:00:11]} Nf6 {[%emt 0:00:03]} 4. Be2 {[%emt 0:00:01]} d5 {[%emt 0:00:22]} 5. exd5 {[%emt 0:00:16]} Nxd5 {[%emt 0:00:02]} 6. O-O {[%emt 0:00:03]} Nxc3 {[%emt 0:00:05]} 7. bxc3 {[%emt 0:00:01]} Bd6 {[%emt 0:00:02]} 8. d4 {[%emt 0:00:02]} O-O {[%emt 0:00:02]} 9. Re1 {[%emt 0:00:02]} exd4 {[%emt 0:00:51]} 10. cxd4 {[%emt 0:00:04]} Bg4 {[%emt 0:00:31]} 11. Be3 {[%emt 0:00:54]} h6 {[%emt 0:00:31]} 12. c4 {[%emt 0:00:12]} Bb4 {[%emt 0:01:04]} 13. Rf1 {[%emt 0:01:08]} Be7 {[%emt 0:04:36]} 14. Rb1 {[%emt 0:01:05]} b6 {[%emt 0:01:40]} 15. h3 {[%emt 0:00:06]} Bf5 {[%emt 0:00:22]} 16. Rb5 {[%emt 0:00:16]} Qc8 {[%emt 0:00:33]} 17. Bd3 {[%emt 0:02:08]} Bxd3 {[%emt 0:00:08]} 18. Qxd3 {[%emt 0:00:02]} a6 {[%emt 0:00:03]} 19. Rh5 {[%emt 0:00:43]} Qe6 {[%emt 0:01:44]} 20. Re1 {[%emt 0:03:57]} Nb4 {[%emt 0:00:13]} 21. Qb3 {[%emt 0:00:47]} Qg6 {[%emt 0:00:30]} 22. g4 {[%emt 0:00:18]} Nc6 {[%emt 0:02:05]} 23. Qa4 {[%emt 0:01:34]} f5 {[%emt 0:00:15]} 24. Qc2 {[%emt 0:00:51]} Nb4 {[%emt 0:00:22]} 25. Qb1 {[%emt 0:00:01]} Rf6 {[%emt 0:00:38]} 26. Ne5 {[%emt 0:00:59]} Qh7 {[%emt 0:00:06]} 27. Rxf5 {[%emt 0:00:10]} Rxf5 {[%emt 0:00:07]} 28. gxf5 {[%emt 0:00:01]} Bd6 {[%emt 0:00:07]} 29. Ng6 {[%emt 0:00:08]} Nc6 {[%emt 0:00:06]} 30. Qe4 {[%emt 0:00:03]} 1-0

[Event "European Online Club-ch-E 2021"]
[Site "Online"]
[Date "2021.03.27"]
[Round "4.7"]
[White "Apostolakakis, Konstantinos"]
[Black "Kukk, Sander"]
[Result "0-1"]
[ECO "D03"]
[WhiteElo "2074"]
[BlackElo "2230"]
[Annotator "NA"]
[PlyCount "66"]
[EventDate "2021.03.27"]
[EventType "team-tourn"]
[EventCountry "NET"]
[SourceTitle "playchess.com"]
[Source "ChessBase"]
[SourceQuality "1"]
[TimeControl "900+5"]

1. d4 {[%emt 0:00:00]} g6 {[%emt 0:00:08]} 2. Nf3 {[%emt 0:00:05]} Bg7 {[%emt 0:00:10]} 3. c3 {[%emt 0:00:04]} Nf6 {[%emt 0:00:02]} 4. Bg5 {[%emt 0:00:06]} O-O {[%emt 0:00:02]} 5. Nbd2 {[%emt 0:00:04]} d5 {[%emt 0:00:07]} 6. e3 {[%emt 0:00:07]} b6 {[%emt 0:00:42]} 7. Be2 {[%emt 0:00:04]} Bb7 {[%emt 0:00:06]} 8. O-O {[%emt 0:00:08]} Nbd7 {[%emt 0:00:02]} 9. a4 {[%emt 0:00:13]} a5 {[%emt 0:00:06]} 10. b4 {[%emt 0:00:44]} axb4 {[%emt 0:01:35]} 11. cxb4 {[%emt 0:00:03]} c5 {[%emt 0:00:00]} 12. bxc5 {[%emt 0:01:34]} bxc5 {[%emt 0:00:00]} 13. Rb1 {[%emt 0:01:30]} Bc6 {[%emt 0:00:22]} 14. Bb5 {[%emt 0:01:02]} Bxb5 {[%emt 0:00:08]} 15. Rxb5 {[%emt 0:00:34]} c4 {[%emt 0:00:04]} 16. Ne5 {[%emt 0:00:38]} e6 {[%emt 0:00:41]} 17. Qc2 {[%emt 0:00:57]} Qc8 {[%emt 0:00:46]} 18. Nxd7 {[%emt 0:01:01]} Nxd7 {[%emt 0:00:49]} 19. Rfb1 {[%emt 0:00:26]} f5 {[%emt 0:00:35]} 20. a5 {[%emt 0:01:01]} Qc6 {[%emt 0:02:11]} 21. Bf4 {[%emt 0:01:15]} Ra6 {[%emt 0:00:56]} 22. Rb7 {[%emt 0:00:29]} Rc8 {[%emt 0:00:27]} 23. Qc3 {[%emt 0:00:28]} h6 {[%emt 0:03:11]} 24. h4 {[%emt 0:00:04]} Qa4 {[%emt 0:00:57]} 25. R1b5 {[%emt 0:00:36]} Qd1+ {[%emt 0:00:21]} 26. Kh2 {[%emt 0:01:19]} Nf6 {[%emt 0:00:04]} 27. f3 {[%emt 0:00:13]} Nh5 {[%emt 0:00:04]} 28. Rd7 {[%emt 0:00:44]} Nxf4 {[%emt 0:00:20]} 29. exf4 {[%emt 0:00:03]} Qe1 {[%emt 0:00:02]} 30. Rbb7 {[%emt 0:00:23]} Qxh4+ {[%emt 0:00:15]} 31. Kg1 {[%emt 0:00:02]} Bh8 {[%emt 0:00:25]} 32. Qa3 {[%emt 0:00:23]} Bxd4+ {[%emt 0:00:03]} 33. Kf1 {[%emt 0:00:04]} Qf2# {[%emt 0:00:03]} 0-1

[Event "European Online Club-ch-E 2021"]
[Site "Online"]
[Date "2021.03.27"]
[Round "4.8"]
[White "Nestor, Kaarel"]
[Black "Zisiadis, Dimitrios"]
[Result "0-1"]
[ECO "E11"]
[WhiteElo "2134"]
[BlackElo "2042"]
[Annotator "NA"]
[PlyCount "150"]
[EventDate "2021.03.27"]
[EventType "team-tourn"]
[EventCountry "NET"]
[SourceTitle "playchess.com"]
[Source "ChessBase"]
[SourceQuality "1"]
[TimeControl "900+5"]

1. d4 {[%emt 0:00:00]} Nf6 {[%emt 0:00:10]} 2. Nf3 {[%emt 0:00:04]} e6 {[%emt 0:00:07]} 3. c4 {[%emt 0:00:04]} Bb4+ {[%emt 0:00:12]} 4. Bd2 {[%emt 0:00:11]} a5 {[%emt 0:00:09]} 5. Qc2 {[%emt 0:00:19]} O-O {[%emt 0:00:29]} 6. e4 {[%emt 0:00:06]} d6 {[%emt 0:00:22]} 7. Bd3 {[%emt 0:00:18]} h6 {[%emt 0:00:55]} 8. O-O {[%emt 0:00:09]} Bxd2 {[%emt 0:00:03]} 9. Nbxd2 {[%emt 0:00:02]} Nc6 {[%emt 0:00:18]} 10. a3 {[%emt 0:00:06]} e5 {[%emt 0:00:02]} 11. Qc3 {[%emt 0:00:10]} Qe7 {[%emt 0:00:34]} 12. Rfe1 {[%emt 0:00:17]} a4 {[%emt 0:00:08]} 13. Rac1 {[%emt 0:00:11]} Bg4 {[%emt 0:00:04]} 14. c5 {[%emt 0:00:23]} Nh5 {[%emt 0:00:58]} 15. Bb5 {[%emt 0:00:14]} exd4 {[%emt 0:00:15]} 16. Nxd4 {[%emt 0:00:05]} Ne5 {[%emt 0:00:09]} 17. f3 {[%emt 0:00:29]} Bd7 {[%emt 0:00:37]} 18. Bxd7 {[%emt 0:00:45]} Qxd7 {[%emt 0:00:22]} 19. Nf5 {[%emt 0:00:10]} Kh7 {[%emt 0:01:02]} 20. Nc4 {[%emt 0:00:36]} Nxc4 {[%emt 0:00:18]} 21. Qxc4 {[%emt 0:00:00]} g6 {[%emt 0:00:09]} 22. Ne3 {[%emt 0:00:12]} dxc5 {[%emt 0:00:14]} 23. Qxc5 {[%emt 0:00:03]} c6 {[%emt 0:00:06]} 24. Ng4 {[%emt 0:00:08]} Rad8 {[%emt 0:00:46]} 25. Qe3 {[%emt 0:02:29]} Qd4 {[%emt 0:00:07]} 26. Rc2 {[%emt 0:00:12]} Nf4 {[%emt 0:00:22]} 27. g3 {[%emt 0:00:24]} Ne6 {[%emt 0:00:40]} 28. Kg2 {[%emt 0:00:08]} Qxe3 {[%emt 0:00:06]} 29. Rxe3 {[%emt 0:00:00]} Rd4 {[%emt 0:00:18]} 30. Ne5 {[%emt 0:00:29]} Kg7 {[%emt 0:00:13]} 31. f4 {[%emt 0:00:09]} Rfd8 {[%emt 0:00:13]} 32. Nf3 {[%emt 0:00:03]} Rd3 {[%emt 0:00:16]} 33. Kf2 {[%emt 0:00:09]} Rd1 {[%emt 0:02:09]} 34. Ke2 {[%emt 0:00:20]} R1d7 {[%emt 0:00:49]} 35. Kf2 {[%emt 0:00:04]} Rd1 {[%emt 0:00:04]} 36. h4 {[%emt 0:00:38]} Nd4 {[%emt 0:00:07]} 37. Nxd4 {[%emt 0:00:02]} R8xd4 {[%emt 0:00:04]} 38. Rce2 {[%emt 0:00:06]} Kf6 {[%emt 0:00:27]} 39. e5+ {[%emt 0:00:13]} Ke6 {[%emt 0:00:11]} 40. Kf3 {[%emt 0:00:13]} h5 {[%emt 0:00:08]} 41. Re4 {[%emt 0:00:43]} c5 {[%emt 0:00:23]} 42. Rxd4 {[%emt 0:00:13]} Rxd4 {[%emt 0:00:35]} 43. Rc2 {[%emt 0:00:32]} Kd5 {[%emt 0:00:06]} 44. Ke2 {[%emt 0:00:07]} b5 {[%emt 0:00:30]} 45. Rc3 {[%emt 0:00:04]} b4 {[%emt 0:00:18]} 46. Rc1 {[%emt 0:00:38]} bxa3 {[%emt 0:00:17]} 47. bxa3 {[%emt 0:00:00]} c4 {[%emt 0:00:35]} 48. Rc3 {[%emt 0:00:07]} Ke4 {[%emt 0:00:07]} 49. Re3+ {[%emt 0:00:02]} Kf5 {[%emt 0:00:16]} 50. e6 {[%emt 0:01:36]} fxe6 {[%emt 0:00:06]} 51. Re5+ {[%emt 0:00:02]} Kf6 {[%emt 0:00:08]} 52. Ra5 {[%emt 0:00:10]} Rd3 {[%emt 0:00:16]} 53. Rxa4 {[%emt 0:00:01]} Rxg3 {[%emt 0:00:02]} 54. Rxc4 {[%emt 0:00:02]} Rxa3 {[%emt 0:00:02]} 55. Rc5 {[%emt 0:00:05]} Rh3 {[%emt 0:00:06]} 56. Kf2 {[%emt 0:00:01]} Rxh4 {[%emt 0:00:03]} 57. Kg3 {[%emt 0:00:02]} Rg4+ {[%emt 0:00:04]} 58. Kf3 {[%emt 0:00:02]} Rg1 {[%emt 0:00:02]} 59. Kf2 {[%emt 0:00:02]} Rd1 {[%emt 0:00:03]} 60. Kf3 {[%emt 0:00:02]} Rd5 {[%emt 0:00:03]} 61. Rc8 {[%emt 0:00:03]} Ra5 {[%emt 0:00:29]} 62. Rf8+ {[%emt 0:00:04]} Kg7 {[%emt 0:00:04]} 63. Re8 {[%emt 0:00:01]} Kf7 {[%emt 0:00:01]} 64. Rh8 {[%emt 0:00:02]} e5 {[%emt 0:00:12]} 65. Ke4 {[%emt 0:00:02]} exf4 {[%emt 0:00:04]} 66. Kxf4 {[%emt 0:00:00]} Kg7 {[%emt 0:00:03]} 67. Rb8 {[%emt 0:00:03]} Rf5+ {[%emt 0:00:02]} 68. Ke4 {[%emt 0:00:03]} h4 {[%emt 0:00:05]} 69. Rb7+ {[%emt 0:00:05]} Kh6 {[%emt 0:00:03]} 70. Rb8 {[%emt 0:00:03]} Kg5 {[%emt 0:00:02]} 71. Rh8 {[%emt 0:00:03]} Kg4 {[%emt 0:00:04]} 72. Rh6 {[%emt 0:00:02]} g5 {[%emt 0:00:04]} 73. Ke3 {[%emt 0:00:05]} Kg3 {[%emt 0:00:06]} 74. Ke4 {[%emt 0:00:03]} Rf1 {[%emt 0:00:03]} 75. Rh5 {[%emt 0:00:02]} g4 {[%emt 0:00:02]} 0-1

[Event "European Online Club-ch-E 2021"]
[Site "Online"]
[Date "2021.03.27"]
[Round "4.9"]
[White "Caglar, Sila"]
[Black "Westerberg, Jonathan"]
[Result "0-1"]
[ECO "B45"]
[WhiteElo "2250"]
[BlackElo "2534"]
[Annotator "ChessBase"]
[PlyCount "62"]
[EventDate "2021.03.27"]
[EventType "team-tourn"]
[EventCountry "NET"]
[SourceTitle "playchess.com"]
[Source "ChessBase"]
[SourceQuality "1"]
[TimeControl "900+5"]

1. e4 {[%emt 0:00:00]} c5 {[%emt 0:00:04]} 2. Nf3 {[%emt 0:00:03]} Nc6 {[%emt 0:00:02]} 3. d4 {[%emt 0:00:02]} cxd4 {[%emt 0:00:02]} 4. Nxd4 {[%emt 0:00:01]} Nf6 {[%emt 0:00:01]} 5. Nc3 {[%emt 0:00:03]} e6 {[%emt 0:00:02]} 6. Ndb5 {[%emt 0:00:18]} Bc5 {[%emt 0:00:02]} 7. Bf4 {[%emt 0:00:58]} O-O {[%emt 0:00:04]} 8. Bc7 {[%emt 0:01:03]} Qe7 {[%emt 0:00:04]} 9. Bd6 {[%emt 0:00:23]} Bxd6 {[%emt 0:00:02]} 10. Qxd6 {[%emt 0:00:03]} Qd8 {[%emt 0:00:02]} 11. O-O-O {[%emt 0:00:22]} a6 {[%emt 0:00:31]} 12. Nd4 {[%emt 0:01:16]} Qb6 {[%emt 0:00:04]} 13. Nxc6 {[%emt 0:03:41]} bxc6 {[%emt 0:00:04]} 14. f3 {[%emt 0:00:45]} Ne8 {[%emt 0:00:44]} 15. Qd4 {[%emt 0:02:58]} Qc7 {[%emt 0:02:09]} 16. h4 {[%emt 0:01:13]} d5 {[%emt 0:00:15]} 17. exd5 {[%emt 0:00:14]} cxd5 {[%emt 0:01:04]} 18. h5 {[%emt 0:00:17]} h6 {[%emt 0:00:08]} 19. g4 {[%emt 0:00:20]} Rb8 {[%emt 0:00:18]} 20. f4 {[%emt 0:01:17]} a5 {[%emt 0:00:26]} 21. a3 {[%emt 0:00:46]} Nd6 {[%emt 0:00:19]} 22. Bd3 {[%emt 0:00:30]} Qb6 {[%emt 0:00:14]} 23. Qxb6 {[%emt 0:00:07]} Rxb6 {[%emt 0:00:02]} 24. g5 {[%emt 0:00:02]} Ba6 {[%emt 0:00:09]} 25. Rdg1 {[%emt 0:00:16]} Bxd3 {[%emt 0:00:18]} 26. cxd3 {[%emt 0:00:02]} Nf5 {[%emt 0:00:19]} 27. Rh2 {[%emt 0:00:10]} hxg5 {[%emt 0:01:25]} 28. Rxg5 {[%emt 0:00:03]} f6 {[%emt 0:00:56]} 29. Rg6 {[%emt 0:00:06]} Kf7 {[%emt 0:00:02]} 30. Rg1 {[%emt 0:00:06]} Rc8 {[%emt 0:00:39]} 31. Kb1 {[%emt 0:00:02]} Rxc3 {[%emt 0:00:08]} 0-1

[Event "European Online Club-ch-E 2021"]
[Site "Online"]
[Date "2021.03.27"]
[Round "4.10"]
[White "Seo, Jung Min"]
[Black "Kocyigit, Buse Naz"]
[Result "1-0"]
[ECO "A01"]
[WhiteElo "2453"]
[BlackElo "2143"]
[Annotator "ChessBase"]
[PlyCount "95"]
[EventDate "2021.03.27"]
[EventType "team-tourn"]
[EventCountry "NET"]
[SourceTitle "playchess.com"]
[Source "ChessBase"]
[SourceQuality "1"]
[TimeControl "900+5"]

1. b3 {[%emt 0:00:00]} Nf6 {[%emt 0:00:07]} 2. Bb2 {[%emt 0:00:04]} g6 {[%emt 0:00:03]} 3. Bxf6 {[%emt 0:00:07]} exf6 {[%emt 0:00:02]} 4. c4 {[%emt 0:00:02]} d5 {[%emt 0:00:01]} 5. cxd5 {[%emt 0:00:02]} Qxd5 {[%emt 0:00:02]} 6. Nc3 {[%emt 0:00:02]} Qa5 {[%emt 0:00:03]} 7. g3 {[%emt 0:00:10]} c6 {[%emt 0:00:04]} 8. Bg2 {[%emt 0:00:02]} f5 {[%emt 0:02:04]} 9. e3 {[%emt 0:00:04]} Bg7 {[%emt 0:00:08]} 10. Nge2 {[%emt 0:00:03]} O-O {[%emt 0:00:11]} 11. O-O {[%emt 0:00:02]} Nd7 {[%emt 0:00:13]} 12. Qc2 {[%emt 0:00:06]} Nf6 {[%emt 0:00:09]} 13. d4 {[%emt 0:00:04]} Be6 {[%emt 0:00:22]} 14. Na4 {[%emt 0:00:52]} Bd5 {[%emt 0:00:40]} 15. Nf4 {[%emt 0:00:25]} Bxg2 {[%emt 0:01:02]} 16. Kxg2 {[%emt 0:00:03]} Ne4 {[%emt 0:01:00]} 17. Rac1 {[%emt 0:00:06]} Rfe8 {[%emt 0:00:33]} 18. Rfd1 {[%emt 0:00:08]} Bh6 {[%emt 0:01:36]} 19. Nd3 {[%emt 0:00:30]} Qd5 {[%emt 0:01:24]} 20. Qc4 {[%emt 0:00:16]} Qd8 {[%emt 0:01:33]} 21. Nac5 {[%emt 0:00:08]} Qe7 {[%emt 0:00:30]} 22. Re1 {[%emt 0:00:38]} Nd6 {[%emt 0:00:50]} 23. Qc2 {[%emt 0:00:12]} Rac8 {[%emt 0:01:03]} 24. Ne5 {[%emt 0:00:12]} Bg7 {[%emt 0:00:33]} 25. Nf3 {[%emt 0:00:07]} Ne4 {[%emt 0:00:13]} 26. h4 {[%emt 0:00:09]} b6 {[%emt 0:00:20]} 27. Nxe4 {[%emt 0:00:16]} fxe4 {[%emt 0:00:02]} 28. Nd2 {[%emt 0:00:06]} h5 {[%emt 0:00:52]} 29. Qb1 {[%emt 0:00:14]} Bf6 {[%emt 0:00:03]} 30. Rc4 {[%emt 0:00:10]} Qe6 {[%emt 0:00:25]} 31. Rec1 {[%emt 0:00:18]} Qd5 {[%emt 0:00:49]} 32. Qc2 {[%emt 0:00:15]} Re6 {[%emt 0:00:10]} 33. b4 {[%emt 0:00:06]} Be7 {[%emt 0:00:12]} 34. a3 {[%emt 0:00:03]} g5 {[%emt 0:00:18]} 35. hxg5 {[%emt 0:00:08]} h4 {[%emt 0:00:06]} 36. gxh4 {[%emt 0:00:35]} Qf5 {[%emt 0:00:01]} 37. Qd1 {[%emt 0:00:05]} Kg7 {[%emt 0:00:02]} 38. Nf1 {[%emt 0:00:04]} Rh8 {[%emt 0:00:10]} 39. Ng3 {[%emt 0:00:04]} Qd5 {[%emt 0:00:03]} 40. Qg4 {[%emt 0:00:07]} b5 {[%emt 0:00:12]} 41. R4c3 {[%emt 0:00:14]} Kf8 {[%emt 0:00:03]} 42. Rh1 {[%emt 0:00:09]} Bd6 {[%emt 0:00:10]} 43. Qf5 {[%emt 0:00:10]} Qa2 {[%emt 0:00:02]} 44. Rxc6 {[%emt 0:00:26]} Qxa3 {[%emt 0:00:07]} 45. Rc8+ {[%emt 0:00:19]} Kg7 {[%emt 0:00:04]} 46. Rxh8 {[%emt 0:00:08]} Kxh8 {[%emt 0:00:01]} 47. Qxf7 {[%emt 0:00:07]} Re7 {[%emt 0:00:08]} 48. Qf6+ {[%emt 0:00:04]} 1-0

[Event "European Online Club-ch-E 2021"]
[Site "Online"]
[Date "2021.03.27"]
[Round "4.11"]
[White "Aydin, Gulenay"]
[Black "Hauge, Lars Oskar"]
[Result "0-1"]
[ECO "B13"]
[WhiteElo "1975"]
[BlackElo "2483"]
[Annotator "ChessBase"]
[PlyCount "82"]
[EventDate "2021.03.27"]
[EventType "team-tourn"]
[EventCountry "NET"]
[SourceTitle "playchess.com"]
[Source "ChessBase"]
[SourceQuality "1"]
[TimeControl "900+5"]

1. e4 {[%emt 0:00:00]} c6 {[%emt 0:00:05]} 2. d4 {[%emt 0:00:05]} d5 {[%emt 0:00:02]} 3. exd5 {[%emt 0:00:02]} cxd5 {[%emt 0:00:03]} 4. c4 {[%emt 0:00:01]} Nf6 {[%emt 0:00:11]} 5. Nc3 {[%emt 0:00:02]} Nc6 {[%emt 0:00:04]} 6. Bg5 {[%emt 0:00:02]} Be6 {[%emt 0:00:02]} 7. Nf3 {[%emt 0:00:21]} Qa5 {[%emt 0:00:09]} 8. Bxf6 {[%emt 0:03:15]} exf6 {[%emt 0:00:04]} 9. c5 {[%emt 0:00:17]} Bxc5 {[%emt 0:00:44]} 10. Bb5 {[%emt 0:04:23]} Bb4 {[%emt 0:00:10]} 11. O-O {[%emt 0:01:23]} Rc8 {[%emt 0:00:38]} 12. Bxc6+ {[%emt 0:01:51]} Rxc6 {[%emt 0:00:04]} 13. Ne2 {[%emt 0:00:01]} O-O {[%emt 0:00:04]} 14. a3 {[%emt 0:00:11]} Bd6 {[%emt 0:00:04]} 15. Nc3 {[%emt 0:00:08]} Qd8 {[%emt 0:00:12]} 16. Re1 {[%emt 0:00:29]} Bb8 {[%emt 0:00:04]} 17. h3 {[%emt 0:00:09]} g6 {[%emt 0:00:18]} 18. Qd2 {[%emt 0:00:08]} Kg7 {[%emt 0:00:02]} 19. Re2 {[%emt 0:00:07]} Qd6 {[%emt 0:00:27]} 20. Rae1 {[%emt 0:00:10]} a6 {[%emt 0:00:03]} 21. Na4 {[%emt 0:01:10]} Bf5 {[%emt 0:00:16]} 22. Nc5 {[%emt 0:00:11]} Rc7 {[%emt 0:00:32]} 23. Nd3 {[%emt 0:01:15]} Be4 {[%emt 0:00:24]} 24. Re3 {[%emt 0:00:39]} Rfc8 {[%emt 0:00:39]} 25. Nc5 {[%emt 0:00:16]} Bxf3 {[%emt 0:00:04]} 26. Rxf3 {[%emt 0:00:01]} b6 {[%emt 0:00:02]} 27. b4 {[%emt 0:00:26]} bxc5 {[%emt 0:00:05]} 28. bxc5 {[%emt 0:00:04]} Qc6 {[%emt 0:00:02]} 29. g4 {[%emt 0:00:09]} Rb7 {[%emt 0:00:05]} 30. h4 {[%emt 0:00:05]} Qc7 {[%emt 0:00:06]} 31. Rg3 {[%emt 0:00:07]} Qd7 {[%emt 0:00:08]} 32. Rg2 {[%emt 0:00:02]} h6 {[%emt 0:00:02]} 33. g5 {[%emt 0:00:04]} fxg5 {[%emt 0:00:02]} 34. hxg5 {[%emt 0:00:04]} hxg5 {[%emt 0:00:06]} 35. Qxg5 {[%emt 0:00:06]} Rh8 {[%emt 0:00:02]} 36. f3 {[%emt 0:00:10]} Qh3 {[%emt 0:00:05]} 37. Qxd5 {[%emt 0:00:03]} Qh1+ {[%emt 0:00:04]} 38. Kf2 {[%emt 0:00:01]} Rb2+ {[%emt 0:00:01]} 39. Re2 {[%emt 0:00:06]} Rxe2+ {[%emt 0:00:05]} 40. Kxe2 {[%emt 0:00:04]} Qxg2+ {[%emt 0:00:02]} 41. Ke3 {[%emt 0:00:01]} Re8+ {[%emt 0:00:03]} 0-1